Workbook

Sheet Survey
E28: Click Here To Begin The Survey

Sheet Questions (hidden)
A1: Our church has a comprehensive plan to reach our community (Jerusalem), region/state (Judea), continent (Samaria) and world (ends of the earth)
A2: Our church has designated mission leaders and/or mission teams responsible for doing missions in the areas of Jerusalem, Judea, Samaria, and Ends of Earth
A3: Our church budget reflects a plan to reach people in this area
A4: Our church provides Great Commission—Acts 1:8 mission awareness for every age group in the church
A5: Our church has hosted or been involved in some type of missions training (missions, cross-cultural, team leader, etc) for this area in the past 12 months
A6: Our church is regularly exposed to mission awareness or mission education materials such as magazines, newspapers, newsletters, Internet, emails, etc for this area
A7: Our church has an ongoing prayer plan to pray specifically for missionaries, other Christian workers, and/or non-evangelized people groups in this area
A8: Our church has adopted a missionary for this area that we pray for regularly
A9: Our church is actively involved in engaging people groups or population segments in this area with the Gospel
A10: Our church regularly participates in prayer-walking or virtual prayer-walking (via computer or other electronic device) for this area
A11: Our church has a prayer coordinator for this area
A12: Our church regularly focuses on mission needs in this area
A13: Our church is actively involved in giving to missions through the Cooperative Program for our Jerusalem, Judea, Samaria, and the World
A14: Our church supports its Acts 1:8 partners (associations, state conventions, national SBC entities) through special or annual Southern Baptist mission offerings
A15: Our church provides mission action opportunities or outreach ministries for its members (evangelistic visitation, hospitals and homebound visitation, etc) in this area
A16: Our church members are aware of mission opportunities available to them in this area
A17: Our church plans and encourages mission opportunities in this area
A18: Our church has an intentional evangelistic outreach program for this area
A19: Our church provides evangelistic materials for its members to use in this area
A20: Our church presents the overwhelming need for missionaries and encourages individuals to respond to career missions in this area
A21: Our church offers opportunities for individuals to share their call to missions in this area, and affirms them in doing so
A22: Our church assists people exploring career missions in this area
A23: Our church regularly prays for and regularly provides financial support for church planting and church planting movements in this area
A24: Our church has been intentionally involved in planting a church in this area in the past 12 months
A25: Our church has a plan to start an ethnic, culturally diverse church in this area in the next 12 months
A26: The designated mission leaders and/or mission teams are empowered with the authority to administer our missions plan in this area
A27: Our members are trained in mission opportunities in this area
A28: Our members are encouraged and trained to share their faith in a culturally relevant way in this area
A29: Our members are informed about opportunities for service in this area (North American Mission Board, International Mission Board, World Changers, Disaster Relief, Local Ministries, etc)
A30: Our pastor regularly emphasizes missions giving for this area
A31: Our pastor and/or mission leaders regularly use sermon illustrations, missionary speakers, mission fairs, commissioning services or other activities and events to bring mission awareness about this area to our church?
A32: A majority of our church membership can describe the church’s comprehensive plan to reach each of our areas, community (Jerusalem), region/state (Judea), continent (Samaria) and world (ends of the earth)
A33: A missionary in this area has spoken or made a presentation about missions at our church in the 12 months
A34: I have participated in a mission endeavor this year (action involvement, not just training) to this area
A35: Members of our church have shared testimonies about their mission experiences in this area in the past 12 months
A36: Members of our church regularly give above their tithe to mission opportunities in this area
A37: It is my church’s responsibility to participate in planting new churches in this area
A38: Members of our church set aside money to use for mission trips or other missions-related activities in this area
A39: Church members share their faith often (several times a year) in this area
A40: Within the past five years our church has considered adopting a church planter missionary in this area
A41: Within the past five years our church has partnered with other churches in planting new churches in this area
A42: There are times set aside in our service to share evangelistic testimonies from this area

Sheet Charts (hidden)
A200: m

Sheet UserScore (hidden)
C1: JERUSALEM | D1: JUDEA | E1: SAMARIA | F1: ENDS OF THE EARTH | I1: JERUSALEM | J1: HIDDEN1 | K1: JUDEA | L1: HIDDEN2 | M1: SAMARIA | N1: HIDDEN3 | O1: ENDS OF THE EARTH | P1: HIDDEN4
A2: 1 | B2: PREPARE | C2: 4 | D2: 4 | E2: 4 | F2: 3 | H2: PREPARE | I2: =SUMIFS(C:C,$B:$B,$H2)/(COUNTIFS($B:$B,$H2)*4) -> 0.95 | J2: =1-I2 -> 0.05 | K2: =SUMIFS(D:D,$B:$B,$H2)/(COUNTIFS($B:$B,$H2)*4) -> 0.9 | L2: =1-K2 -> 0.1 | M2: =SUMIFS(E:E,$B:$B,$H2)/(COUNTIFS($B:$B,$H2)*4) -> 0.8 | N2: =1-M2 -> 0.2 | O2: =SUMIFS(F:F,$B:$B,$H2)/(COUNTIFS($B:$B,$H2)*4) -> 0.75 | P2: =1-O2 -> 0.25
A3: 2 | B3: LEARN | C3: 4 | D3: 3 | E3: 2 | F3: 2 | H3: LEARN | I3: =SUMIFS(C:C,$B:$B,$H3)/(COUNTIFS($B:$B,$H3)*4) -> 1 | J3: =1-I3 -> 0 | K3: 0.8928571429 | L3: 0.1071428571 | M3: 0.8571428571 | N3: =1-M3 -> 0.1428571429 | O3: 0.75 | P3: =1-O3 -> 0.25
A4: 3 | B4: PREPARE | C4: 4 | D4: 4 | E4: 4 | F4: 4 | H4: PRAY | I4: 0.9 | J4: 0.1 | K4: 0.7 | L4: 0.3 | M4: 0.65 | N4: =1-M4 -> 0.35 | O4: 0.6 | P4: =1-O4 -> 0.4
A5: 4 | B5: PREPARE | C5: 3 | D5: 3 | E5: 3 | F5: 3 | H5: GIVE | I5: 1 | J5: 0 | K5: 1 | L5: 0 | M5: 1 | N5: =1-M5 -> 0 | O5: 1 | P5: =1-O5 -> 0
A6: 5 | B6: LEARN | C6: 4 | D6: 2 | E6: 2 | F6: 2 | H6: GO | I6: 1 | J6: 0 | K6: 0.85 | L6: 0.15 | M6: 0.75 | N6: =1-M6 -> 0.25 | O6: 0.75 | P6: =1-O6 -> 0.25
A7: 6 | B7: LEARN | C7: 4 | D7: 4 | E7: 4 | F7: 4 | H7: TELL | I7: 1 | J7: 0 | K7: 0.95 | L7: 0.05 | M7: 0.9 | N7: =1-M7 -> 0.1 | O7: 0.8 | P7: =1-O7 -> 0.2
A8: 7 | B8: PRAY | C8: 3 | D8: 3 | E8: 3 | F8: 2 | H8: SEND | I8: 0.9375 | J8: 0.0625 | K8: 0.75 | L8: 0.25 | M8: 0.75 | N8: =1-M8 -> 0.25 | O8: 0.625 | P8: =1-O8 -> 0.375
A9: 8 | B9: PRAY | C9: 3 | D9: 1 | E9: 1 | F9: 1 | H9: MULTIPLY | I9: 0.3333333333 | J9: 0.6666666667 | K9: 0.2916666667 | L9: 0.7083333333 | M9: 0.2916666667 | N9: =1-M9 -> 0.7083333333 | O9: 0.2916666667 | P9: =1-O9 -> 0.7083333333
A10: 9 | B10: GO | C10: 4 | D10: 3 | E10: 3 | F10: 3
A11: 10 | B11: PRAY | C11: 4 | D11: 4 | E11: 3 | F11: 3
A12: 11 | B12: PRAY | C12: 4 | D12: 2 | E12: 2 | F12: 2
A13: 12 | B13: PRAY | C13: 4 | D13: 4 | E13: 4 | F13: 4
A14: 13 | B14: GIVE | C14: 4 | D14: 4 | E14: 4 | F14: 4
A15: 14 | B15: GIVE | C15: 4 | D15: 4 | E15: 4 | F15: 4
A16: 15 | B16: GO | C16: 4 | D16: 4 | E16: 2 | F16: 2
A17: 16 | B17: LEARN | C17: 4 | D17: 4 | E17: 4 | F17: 4
A18: 17 | B18: GO | C18: 4 | D18: 4 | E18: 4 | F18: 4
A19: 18 | B19: TELL | C19: 4 | D19: 3 | E19: 2 | F19: 2
A20: 19 | B20: TELL | C20: 4 | D20: 4 | E20: 4 | F20: 4
A21: 20 | B21: SEND | C21: 4 | D21: 2 | E21: 2 | F21: 2
A22: 21 | B22: SEND | C22: 4 | D22: 4 | E22: 4 | F22: 4
A23: 22 | B23: SEND | C23: 3 | D23: 2 | E23: 2 | F23: 2
A24: 23 | B24: MULTIPLY | C24: 2 | D24: 2 | E24: 2 | F24: 2
A25: 24 | B25: MULTIPLY | C25: 1 | D25: 1 | E25: 1 | F25: 1
A26: 25 | B26: MULTIPLY | C26: 1 | D26: 1 | E26: 1 | F26: 1
A27: 26 | B27: PREPARE | C27: 4 | D27: 4 | E27: 3 | F27: 3
A28: 27 | B28: GO | C28: 4 | D28: 4 | E28: 4 | F28: 4
A29: 28 | B29: TELL | C29: 4 | D29: 4 | E29: 4 | F29: 4
A30: 29 | B30: SEND | C30: 4 | D30: 4 | E30: 4 | F30: 2
A31: 30 | B31: GIVE | C31: 4 | D31: 4 | E31: 4 | F31: 4
A32: 31 | B32: LEARN | C32: 4 | D32: 4 | E32: 4 | F32: 4
A33: 32 | B33: PREPARE | C33: 4 | D33: 3 | E33: 2 | F33: 2
A34: 33 | B34: LEARN | C34: 4 | D34: 4 | E34: 4 | F34: 4
A35: 34 | B35: GO | C35: 4 | D35: 2 | E35: 2 | F35: 2
A36: 35 | B36: LEARN | C36: 4 | D36: 4 | E36: 4 | F36: 1
A37: 36 | B37: GIVE | C37: 4 | D37: 4 | E37: 4 | F37: 4
A38: 37 | B38: MULTIPLY | C38: 2 | D38: 1 | E38: 1 | F38: 1
A39: 38 | B39: GIVE | C39: 4 | D39: 4 | E39: 4 | F39: 4
A40: 39 | B40: TELL | C40: 4 | D40: 4 | E40: 4 | F40: 2
A41: 40 | B41: MULTIPLY | C41: 1 | D41: 1 | E41: 1 | F41: 1
A42: 41 | B42: MULTIPLY | C42: 1 | D42: 1 | E42: 1 | F42: 1
A43: 42 | B43: TELL | C43: 4 | D43: 4 | E43: 4 | F43: 4

Sheet TotalScore (hidden)
B1: 9 | C1: JERUSALEM | D1: JUDEA | E1: SAMARIA | F1: ENDS OF THE EARTH | I1: JERUSALEM | J1: HIDDEN1 | K1: JUDEA | L1: HIDDEN2 | M1: SAMARIA | N1: HIDDEN3 | O1: ENDS OF THE EARTH | P1: HIDDEN4
A2: 1 | B2: PREPARE | C2: =SUM(OFFSET(Jerusalem!$C2,0,0,1,TotalUsers)) -> 26 | D2: =SUM(OFFSET(Judea!$C2,0,0,1,TotalUsers)) -> 21 | E2: =SUM(OFFSET(Samaria!$C2,0,0,1,TotalUsers)) -> 16 | F2: =SUM(OFFSET(End!$C2,0,0,1,TotalUsers)) -> 18 | H2: PREPARE | I2: =SUMIFS(C:C,$B:$B,$H2)/(COUNTIFS($B:$B,$H2)*4*TotalUsers) -> 0.6055555556 | J2: =1-I2 -> 0.3944444444 | K2: =SUMIFS(D:D,$B:$B,$H2)/(COUNTIFS($B:$B,$H2)*4*TotalUsers) -> 0.55 | L2: =1-K2 -> 0.45 | M2: =SUMIFS(E:E,$B:$B,$H2)/(COUNTIFS($B:$B,$H2)*4*TotalUsers) -> 0.4611111111 | N2: =1-M2 -> 0.5388888889 | O2: =SUMIFS(F:F,$B:$B,$H2)/(COUNTIFS($B:$B,$H2)*4*TotalUsers) -> 0.5777777778 | P2: =1-O2 -> 0.4222222222
A3: 2 | B3: LEARN | C3: =SUM(OFFSET(Jerusalem!$C3,0,0,1,TotalUsers)) -> 27 | D3: =SUM(OFFSET(Judea!$C3,0,0,1,TotalUsers)) -> 22 | E3: =SUM(OFFSET(Samaria!$C3,0,0,1,TotalUsers)) -> 18 | F3: =SUM(OFFSET(End!$C3,0,0,1,TotalUsers)) -> 23 | H3: LEARN | I3: 0.7103174603 | J3: =1-I3 -> 0.2896825397 | K3: 0.5952380952 | L3: 0.4047619048 | M3: 0.5277777778 | N3: =1-M3 -> 0.4722222222 | O3: 0.6944444444 | P3: =1-O3 -> 0.3055555556
A4: 3 | B4: PREPARE | C4: =SUM(OFFSET(Jerusalem!$C4,0,0,1,TotalUsers)) -> 26 | D4: =SUM(OFFSET(Judea!$C4,0,0,1,TotalUsers)) -> 21 | E4: =SUM(OFFSET(Samaria!$C4,0,0,1,TotalUsers)) -> 19 | F4: =SUM(OFFSET(End!$C4,0,0,1,TotalUsers)) -> 25 | H4: PRAY | I4: 0.6 | J4: 0.4 | K4: 0.5111111111 | L4: 0.4888888889 | M4: 0.4166666667 | N4: 0.5833333333 | O4: 0.5777777778 | P4: 0.4222222222
A5: 4 | B5: PREPARE | C5: =SUM(OFFSET(Jerusalem!$C5,0,0,1,TotalUsers)) -> 21 | D5: =SUM(OFFSET(Judea!$C5,0,0,1,TotalUsers)) -> 21 | E5: =SUM(OFFSET(Samaria!$C5,0,0,1,TotalUsers)) -> 18 | F5: =SUM(OFFSET(End!$C5,0,0,1,TotalUsers)) -> 27 | H5: GIVE | I5: 0.6388888889 | J5: 0.3611111111 | K5: 0.6333333333 | L5: 0.3666666667 | M5: 0.7166666667 | N5: 0.2833333333 | O5: 0.7833333333 | P5: 0.2166666667
A6: 5 | B6: LEARN | C6: =SUM(OFFSET(Jerusalem!$C6,0,0,1,TotalUsers)) -> 27 | D6: =SUM(OFFSET(Judea!$C6,0,0,1,TotalUsers)) -> 16 | E6: =SUM(OFFSET(Samaria!$C6,0,0,1,TotalUsers)) -> 13 | F6: =SUM(OFFSET(End!$C6,0,0,1,TotalUsers)) -> 20 | H6: GO | I6: 0.7222222222 | J6: 0.2777777778 | K6: 0.5777777778 | L6: 0.4222222222 | M6: 0.4166666667 | N6: 0.5833333333 | O6: 0.5555555556 | P6: 0.4444444444
A7: 6 | B7: LEARN | C7: =SUM(OFFSET(Jerusalem!$C7,0,0,1,TotalUsers)) -> 24 | D7: =SUM(OFFSET(Judea!$C7,0,0,1,TotalUsers)) -> 24 | E7: =SUM(OFFSET(Samaria!$C7,0,0,1,TotalUsers)) -> 22 | F7: =SUM(OFFSET(End!$C7,0,0,1,TotalUsers)) -> 24 | H7: TELL | I7: 0.7333333333 | J7: 0.2666666667 | K7: 0.5888888889 | L7: 0.4111111111 | M7: 0.5388888889 | N7: 0.4611111111 | O7: 0.5722222222 | P7: 0.4277777778
A8: 7 | B8: PRAY | C8: =SUM(OFFSET(Jerusalem!$C8,0,0,1,TotalUsers)) -> 23 | D8: =SUM(OFFSET(Judea!$C8,0,0,1,TotalUsers)) -> 19 | E8: =SUM(OFFSET(Samaria!$C8,0,0,1,TotalUsers)) -> 19 | F8: =SUM(OFFSET(End!$C8,0,0,1,TotalUsers)) -> 21 | H8: SEND | I8: 0.7013888889 | J8: 0.2986111111 | K8: 0.6388888889 | L8: 0.3611111111 | M8: 0.6319444444 | N8: 0.3680555556 | O8: 0.6666666667 | P8: 0.3333333333
A9: 8 | B9: PRAY | C9: =SUM(OFFSET(Jerusalem!$C9,0,0,1,TotalUsers)) -> 19 | D9: =SUM(OFFSET(Judea!$C9,0,0,1,TotalUsers)) -> 21 | E9: =SUM(OFFSET(Samaria!$C9,0,0,1,TotalUsers)) -> 16 | F9: =SUM(OFFSET(End!$C9,0,0,1,TotalUsers)) -> 25 | H9: MULTIPLY | I9: 0.5185185185 | J9: 0.4814814815 | K9: 0.3842592593 | L9: 0.6157407407 | M9: 0.3425925926 | N9: 0.6574074074 | O9: 0.3657407407 | P9: 0.6342592593
A10: 9 | B10: GO | C10: =SUM(OFFSET(Jerusalem!$C10,0,0,1,TotalUsers)) -> 28 | D10: =SUM(OFFSET(Judea!$C10,0,0,1,TotalUsers)) -> 21 | E10: =SUM(OFFSET(Samaria!$C10,0,0,1,TotalUsers)) -> 15 | F10: =SUM(OFFSET(End!$C10,0,0,1,TotalUsers)) -> 22
A11: 10 | B11: PRAY | C11: =SUM(OFFSET(Jerusalem!$C11,0,0,1,TotalUsers)) -> 21 | D11: =SUM(OFFSET(Judea!$C11,0,0,1,TotalUsers)) -> 20 | E11: =SUM(OFFSET(Samaria!$C11,0,0,1,TotalUsers)) -> 10 | F11: =SUM(OFFSET(End!$C11,0,0,1,TotalUsers)) -> 14
A12: 11 | B12: PRAY | C12: =SUM(OFFSET(Jerusalem!$C12,0,0,1,TotalUsers)) -> 18 | D12: =SUM(OFFSET(Judea!$C12,0,0,1,TotalUsers)) -> 11 | E12: =SUM(OFFSET(Samaria!$C12,0,0,1,TotalUsers)) -> 13 | F12: =SUM(OFFSET(End!$C12,0,0,1,TotalUsers)) -> 15
A13: 12 | B13: PRAY | C13: =SUM(OFFSET(Jerusalem!$C13,0,0,1,TotalUsers)) -> 27 | D13: =SUM(OFFSET(Judea!$C13,0,0,1,TotalUsers)) -> 21 | E13: =SUM(OFFSET(Samaria!$C13,0,0,1,TotalUsers)) -> 17 | F13: =SUM(OFFSET(End!$C13,0,0,1,TotalUsers)) -> 29
A14: 13 | B14: GIVE | C14: =SUM(OFFSET(Jerusalem!$C14,0,0,1,TotalUsers)) -> 29 | D14: =SUM(OFFSET(Judea!$C14,0,0,1,TotalUsers)) -> 30 | E14: =SUM(OFFSET(Samaria!$C14,0,0,1,TotalUsers)) -> 31 | F14: =SUM(OFFSET(End!$C14,0,0,1,TotalUsers)) -> 33
A15: 14 | B15: GIVE | C15: =SUM(OFFSET(Jerusalem!$C15,0,0,1,TotalUsers)) -> 25 | D15: =SUM(OFFSET(Judea!$C15,0,0,1,TotalUsers)) -> 25 | E15: =SUM(OFFSET(Samaria!$C15,0,0,1,TotalUsers)) -> 29 | F15: =SUM(OFFSET(End!$C15,0,0,1,TotalUsers)) -> 31
A16: 15 | B16: GO | C16: =SUM(OFFSET(Jerusalem!$C16,0,0,1,TotalUsers)) -> 27 | D16: =SUM(OFFSET(Judea!$C16,0,0,1,TotalUsers)) -> 22 | E16: =SUM(OFFSET(Samaria!$C16,0,0,1,TotalUsers)) -> 13 | F16: =SUM(OFFSET(End!$C16,0,0,1,TotalUsers)) -> 16
A17: 16 | B17: LEARN | C17: =SUM(OFFSET(Jerusalem!$C17,0,0,1,TotalUsers)) -> 27 | D17: =SUM(OFFSET(Judea!$C17,0,0,1,TotalUsers)) -> 22 | E17: =SUM(OFFSET(Samaria!$C17,0,0,1,TotalUsers)) -> 20 | F17: =SUM(OFFSET(End!$C17,0,0,1,TotalUsers)) -> 27
A18: 17 | B18: GO | C18: =SUM(OFFSET(Jerusalem!$C18,0,0,1,TotalUsers)) -> 27 | D18: =SUM(OFFSET(Judea!$C18,0,0,1,TotalUsers)) -> 25 | E18: =SUM(OFFSET(Samaria!$C18,0,0,1,TotalUsers)) -> 19 | F18: =SUM(OFFSET(End!$C18,0,0,1,TotalUsers)) -> 28
A19: 18 | B19: TELL | C19: =SUM(OFFSET(Jerusalem!$C19,0,0,1,TotalUsers)) -> 28 | D19: =SUM(OFFSET(Judea!$C19,0,0,1,TotalUsers)) -> 18 | E19: =SUM(OFFSET(Samaria!$C19,0,0,1,TotalUsers)) -> 15 | F19: =SUM(OFFSET(End!$C19,0,0,1,TotalUsers)) -> 20
A20: 19 | B20: TELL | C20: =SUM(OFFSET(Jerusalem!$C20,0,0,1,TotalUsers)) -> 30 | D20: =SUM(OFFSET(Judea!$C20,0,0,1,TotalUsers)) -> 26 | E20: =SUM(OFFSET(Samaria!$C20,0,0,1,TotalUsers)) -> 26 | F20: =SUM(OFFSET(End!$C20,0,0,1,TotalUsers)) -> 19
A21: 20 | B21: SEND | C21: =SUM(OFFSET(Jerusalem!$C21,0,0,1,TotalUsers)) -> 23 | D21: =SUM(OFFSET(Judea!$C21,0,0,1,TotalUsers)) -> 21 | E21: =SUM(OFFSET(Samaria!$C21,0,0,1,TotalUsers)) -> 19 | F21: =SUM(OFFSET(End!$C21,0,0,1,TotalUsers)) -> 19
A22: 21 | B22: SEND | C22: =SUM(OFFSET(Jerusalem!$C22,0,0,1,TotalUsers)) -> 29 | D22: =SUM(OFFSET(Judea!$C22,0,0,1,TotalUsers)) -> 26 | E22: =SUM(OFFSET(Samaria!$C22,0,0,1,TotalUsers)) -> 28 | F22: =SUM(OFFSET(End!$C22,0,0,1,TotalUsers)) -> 31
A23: 22 | B23: SEND | C23: =SUM(OFFSET(Jerusalem!$C23,0,0,1,TotalUsers)) -> 23 | D23: =SUM(OFFSET(Judea!$C23,0,0,1,TotalUsers)) -> 21 | E23: =SUM(OFFSET(Samaria!$C23,0,0,1,TotalUsers)) -> 22 | F23: =SUM(OFFSET(End!$C23,0,0,1,TotalUsers)) -> 24
A24: 23 | B24: MULTIPLY | C24: =SUM(OFFSET(Jerusalem!$C24,0,0,1,TotalUsers)) -> 20 | D24: =SUM(OFFSET(Judea!$C24,0,0,1,TotalUsers)) -> 19 | E24: =SUM(OFFSET(Samaria!$C24,0,0,1,TotalUsers)) -> 16 | F24: =SUM(OFFSET(End!$C24,0,0,1,TotalUsers)) -> 20
A25: 24 | B25: MULTIPLY | C25: =SUM(OFFSET(Jerusalem!$C25,0,0,1,TotalUsers)) -> 18 | D25: =SUM(OFFSET(Judea!$C25,0,0,1,TotalUsers)) -> 5 | E25: =SUM(OFFSET(Samaria!$C25,0,0,1,TotalUsers)) -> 5 | F25: =SUM(OFFSET(End!$C25,0,0,1,TotalUsers)) -> 8
A26: 25 | B26: MULTIPLY | C26: =SUM(OFFSET(Jerusalem!$C26,0,0,1,TotalUsers)) -> 12 | D26: =SUM(OFFSET(Judea!$C26,0,0,1,TotalUsers)) -> 7 | E26: =SUM(OFFSET(Samaria!$C26,0,0,1,TotalUsers)) -> 7 | F26: =SUM(OFFSET(End!$C26,0,0,1,TotalUsers)) -> 8
A27: 26 | B27: PREPARE | C27: =SUM(OFFSET(Jerusalem!$C27,0,0,1,TotalUsers)) -> 23 | D27: =SUM(OFFSET(Judea!$C27,0,0,1,TotalUsers)) -> 23 | E27: =SUM(OFFSET(Samaria!$C27,0,0,1,TotalUsers)) -> 19 | F27: =SUM(OFFSET(End!$C27,0,0,1,TotalUsers)) -> 22
A28: 27 | B28: GO | C28: =SUM(OFFSET(Jerusalem!$C28,0,0,1,TotalUsers)) -> 22 | D28: =SUM(OFFSET(Judea!$C28,0,0,1,TotalUsers)) -> 20 | E28: =SUM(OFFSET(Samaria!$C28,0,0,1,TotalUsers)) -> 17 | F28: =SUM(OFFSET(End!$C28,0,0,1,TotalUsers)) -> 18
A29: 28 | B29: TELL | C29: =SUM(OFFSET(Jerusalem!$C29,0,0,1,TotalUsers)) -> 27 | D29: =SUM(OFFSET(Judea!$C29,0,0,1,TotalUsers)) -> 24 | E29: =SUM(OFFSET(Samaria!$C29,0,0,1,TotalUsers)) -> 20 | F29: =SUM(OFFSET(End!$C29,0,0,1,TotalUsers)) -> 20
A30: 29 | B30: SEND | C30: =SUM(OFFSET(Jerusalem!$C30,0,0,1,TotalUsers)) -> 26 | D30: =SUM(OFFSET(Judea!$C30,0,0,1,TotalUsers)) -> 24 | E30: =SUM(OFFSET(Samaria!$C30,0,0,1,TotalUsers)) -> 22 | F30: =SUM(OFFSET(End!$C30,0,0,1,TotalUsers)) -> 22
A31: 30 | B31: GIVE | C31: =SUM(OFFSET(Jerusalem!$C31,0,0,1,TotalUsers)) -> 26 | D31: =SUM(OFFSET(Judea!$C31,0,0,1,TotalUsers)) -> 24 | E31: =SUM(OFFSET(Samaria!$C31,0,0,1,TotalUsers)) -> 29 | F31: =SUM(OFFSET(End!$C31,0,0,1,TotalUsers)) -> 31
A32: 31 | B32: LEARN | C32: =SUM(OFFSET(Jerusalem!$C32,0,0,1,TotalUsers)) -> 23 | D32: =SUM(OFFSET(Judea!$C32,0,0,1,TotalUsers)) -> 21 | E32: =SUM(OFFSET(Samaria!$C32,0,0,1,TotalUsers)) -> 22 | F32: =SUM(OFFSET(End!$C32,0,0,1,TotalUsers)) -> 28
A33: 32 | B33: PREPARE | C33: =SUM(OFFSET(Jerusalem!$C33,0,0,1,TotalUsers)) -> 13 | D33: =SUM(OFFSET(Judea!$C33,0,0,1,TotalUsers)) -> 13 | E33: =SUM(OFFSET(Samaria!$C33,0,0,1,TotalUsers)) -> 11 | F33: =SUM(OFFSET(End!$C33,0,0,1,TotalUsers)) -> 12
A34: 33 | B34: LEARN | C34: =SUM(OFFSET(Jerusalem!$C34,0,0,1,TotalUsers)) -> 24 | D34: =SUM(OFFSET(Judea!$C34,0,0,1,TotalUsers)) -> 23 | E34: =SUM(OFFSET(Samaria!$C34,0,0,1,TotalUsers)) -> 16 | F34: =SUM(OFFSET(End!$C34,0,0,1,TotalUsers)) -> 26
A35: 34 | B35: GO | C35: =SUM(OFFSET(Jerusalem!$C35,0,0,1,TotalUsers)) -> 26 | D35: =SUM(OFFSET(Judea!$C35,0,0,1,TotalUsers)) -> 16 | E35: =SUM(OFFSET(Samaria!$C35,0,0,1,TotalUsers)) -> 11 | F35: =SUM(OFFSET(End!$C35,0,0,1,TotalUsers)) -> 16
A36: 35 | B36: LEARN | C36: =SUM(OFFSET(Jerusalem!$C36,0,0,1,TotalUsers)) -> 27 | D36: =SUM(OFFSET(Judea!$C36,0,0,1,TotalUsers)) -> 22 | E36: =SUM(OFFSET(Samaria!$C36,0,0,1,TotalUsers)) -> 22 | F36: =SUM(OFFSET(End!$C36,0,0,1,TotalUsers)) -> 27
A37: 36 | B37: GIVE | C37: =SUM(OFFSET(Jerusalem!$C37,0,0,1,TotalUsers)) -> 17 | D37: =SUM(OFFSET(Judea!$C37,0,0,1,TotalUsers)) -> 16 | E37: =SUM(OFFSET(Samaria!$C37,0,0,1,TotalUsers)) -> 21 | F37: =SUM(OFFSET(End!$C37,0,0,1,TotalUsers)) -> 23
A38: 37 | B38: MULTIPLY | C38: =SUM(OFFSET(Jerusalem!$C38,0,0,1,TotalUsers)) -> 27 | D38: =SUM(OFFSET(Judea!$C38,0,0,1,TotalUsers)) -> 21 | E38: =SUM(OFFSET(Samaria!$C38,0,0,1,TotalUsers)) -> 22 | F38: =SUM(OFFSET(End!$C38,0,0,1,TotalUsers)) -> 21
A39: 38 | B39: GIVE | C39: =SUM(OFFSET(Jerusalem!$C39,0,0,1,TotalUsers)) -> 18 | D39: =SUM(OFFSET(Judea!$C39,0,0,1,TotalUsers)) -> 19 | E39: =SUM(OFFSET(Samaria!$C39,0,0,1,TotalUsers)) -> 19 | F39: =SUM(OFFSET(End!$C39,0,0,1,TotalUsers)) -> 23
A40: 39 | B40: TELL | C40: =SUM(OFFSET(Jerusalem!$C40,0,0,1,TotalUsers)) -> 26 | D40: =SUM(OFFSET(Judea!$C40,0,0,1,TotalUsers)) -> 18 | E40: =SUM(OFFSET(Samaria!$C40,0,0,1,TotalUsers)) -> 16 | F40: =SUM(OFFSET(End!$C40,0,0,1,TotalUsers)) -> 19
A41: 40 | B41: MULTIPLY | C41: =SUM(OFFSET(Jerusalem!$C41,0,0,1,TotalUsers)) -> 17 | D41: =SUM(OFFSET(Judea!$C41,0,0,1,TotalUsers)) -> 18 | E41: =SUM(OFFSET(Samaria!$C41,0,0,1,TotalUsers)) -> 14 | F41: =SUM(OFFSET(End!$C41,0,0,1,TotalUsers)) -> 11
A42: 41 | B42: MULTIPLY | C42: =SUM(OFFSET(Jerusalem!$C42,0,0,1,TotalUsers)) -> 18 | D42: =SUM(OFFSET(Judea!$C42,0,0,1,TotalUsers)) -> 13 | E42: =SUM(OFFSET(Samaria!$C42,0,0,1,TotalUsers)) -> 10 | F42: =SUM(OFFSET(End!$C42,0,0,1,TotalUsers)) -> 11
A43: 42 | B43: TELL | C43: =SUM(OFFSET(Jerusalem!$C43,0,0,1,TotalUsers)) -> 21 | D43: =SUM(OFFSET(Judea!$C43,0,0,1,TotalUsers)) -> 20 | E43: =SUM(OFFSET(Samaria!$C43,0,0,1,TotalUsers)) -> 20 | F43: =SUM(OFFSET(End!$C43,0,0,1,TotalUsers)) -> 25

Sheet Jerusalem (hidden)
C1: Good Ol' Baptist | D1: Good church 2 | E1: Scooter | F1: Rev. Pac DePews | G1: Highland Park First Baptist Church | H1: James Baker | I1: keith parke | J1: emmanuel baptist church- stanton, ky | K1: LesterlkWatson
A2: 1 | B2: PREPARE | C2: 3 | D2: 1 | E2: 3 | F2: 1 | G2: 3 | H2: 4 | I2: 4 | J2: 3 | K2: 4
A3: 2 | B3: LEARN | C3: 3 | D3: 1 | E3: 3 | F3: 1 | G3: 3 | H3: 4 | I3: 4 | J3: 4 | K3: 4
A4: 3 | B4: PREPARE | C4: 3 | D4: 1 | E4: 3 | F4: 1 | G4: 3 | H4: 4 | I4: 4 | J4: 3 | K4: 4
A5: 4 | B5: PREPARE | C5: 2 | D5: 1 | E5: 3 | F5: 1 | G5: 2 | H5: 3 | I5: 4 | J5: 2 | K5: 3
A6: 5 | B6: LEARN | C6: 4 | D6: 2 | E6: 1 | F6: 2 | G6: 2 | H6: 4 | I6: 4 | J6: 4 | K6: 4
A7: 6 | B7: LEARN | C7: 2 | D7: 1 | E7: 3 | F7: 1 | G7: 2 | H7: 4 | I7: 4 | J7: 3 | K7: 4
A8: 7 | B8: PRAY | C8: 3 | D8: 1 | E8: 3 | F8: 1 | G8: 3 | H8: 4 | I8: 4 | J8: 1 | K8: 3
A9: 8 | B9: PRAY | C9: 0 | D9: 1 | E9: 2 | F9: 1 | G9: 3 | H9: 4 | I9: 2 | J9: 3 | K9: 3
A10: 9 | B10: GO | C10: 4 | D10: 1 | E10: 3 | F10: 1 | G10: 3 | H10: 4 | I10: 4 | J10: 4 | K10: 4
A11: 10 | B11: PRAY | C11: 4 | D11: 1 | E11: 3 | F11: 1 | G11: 0 | H11: 2 | I11: 4 | J11: 2 | K11: 4
A12: 11 | B12: PRAY | C12: 1 | D12: 1 | E12: 3 | F12: 1 | G12: 0 | H12: 4 | I12: 4 | J12: 0 | K12: 4
A13: 12 | B13: PRAY | C13: 3 | D13: 1 | E13: 4 | F13: 0 | G13: 3 | H13: 4 | I13: 4 | J13: 4 | K13: 4
A14: 13 | B14: GIVE | C14: 4 | D14: 1 | E14: 4 | F14: 1 | G14: 3 | H14: 4 | I14: 4 | J14: 4 | K14: 4
A15: 14 | B15: GIVE | C15: 4 | D15: 1 | E15: 2 | F15: 0 | G15: 2 | H15: 4 | I15: 4 | J15: 4 | K15: 4
A16: 15 | B16: GO | C16: 4 | D16: 2 | E16: 3 | F16: 0 | G16: 3 | H16: 4 | I16: 4 | J16: 3 | K16: 4
A17: 16 | B17: LEARN | C17: 3 | D17: 2 | E17: 3 | F17: 1 | G17: 2 | H17: 4 | I17: 4 | J17: 4 | K17: 4
A18: 17 | B18: GO | C18: 3 | D18: 1 | E18: 3 | F18: 1 | G18: 3 | H18: 4 | I18: 4 | J18: 4 | K18: 4
A19: 18 | B19: TELL | C19: 3 | D19: 0 | E19: 4 | F19: 2 | G19: 3 | H19: 4 | I19: 4 | J19: 4 | K19: 4
A20: 19 | B20: TELL | C20: 4 | D20: 2 | E20: 4 | F20: 1 | G20: 3 | H20: 4 | I20: 4 | J20: 4 | K20: 4
A21: 20 | B21: SEND | C21: 2 | D21: 1 | E21: 2 | F21: 1 | G21: 3 | H21: 4 | I21: 4 | J21: 2 | K21: 4
A22: 21 | B22: SEND | C22: 2 | D22: 4 | E22: 3 | F22: 1 | G22: 3 | H22: 4 | I22: 4 | J22: 4 | K22: 4
A23: 22 | B23: SEND | C23: 3 | D23: 1 | E23: 3 | F23: 1 | G23: 2 | H23: 4 | I23: 4 | J23: 2 | K23: 3
A24: 23 | B24: MULTIPLY | C24: 3 | D24: 2 | E24: 3 | F24: 1 | G24: 1 | H24: 4 | I24: 4 | J24: 0 | K24: 2
A25: 24 | B25: MULTIPLY | C25: 1 | D25: 1 | E25: 3 | F25: 2 | G25: 2 | H25: 4 | I25: 4 | J25: 0 | K25: 1
A26: 25 | B26: MULTIPLY | C26: 1 | D26: 2 | E26: 3 | F26: 1 | G26: 2 | H26: 0 | I26: 2 | J26: 0 | K26: 1
A27: 26 | B27: PREPARE | C27: 2 | D27: 3 | E27: 2 | F27: 0 | G27: 1 | H27: 4 | I27: 4 | J27: 3 | K27: 4
A28: 27 | B28: GO | C28: 3 | D28: 1 | E28: 3 | F28: 1 | G28: 2 | H28: 3 | I28: 2 | J28: 3 | K28: 4
A29: 28 | B29: TELL | C29: 4 | D29: 1 | E29: 3 | F29: 1 | G29: 3 | H29: 4 | I29: 3 | J29: 4 | K29: 4
A30: 29 | B30: SEND | C30: 3 | D30: 3 | E30: 2 | F30: 0 | G30: 3 | H30: 4 | I30: 4 | J30: 3 | K30: 4
A31: 30 | B31: GIVE | C31: 3 | D31: 1 | E31: 4 | F31: 0 | G31: 2 | H31: 4 | I31: 4 | J31: 4 | K31: 4
A32: 31 | B32: LEARN | C32: 2 | D32: 1 | E32: 3 | F32: 0 | G32: 2 | H32: 4 | I32: 3 | J32: 4 | K32: 4
A33: 32 | B33: PREPARE | C33: 1 | D33: 2 | E33: 2 | F33: 0 | G33: 1 | H33: 0 | I33: 2 | J33: 1 | K33: 4
A34: 33 | B34: LEARN | C34: 1 | D34: 1 | E34: 3 | F34: 1 | G34: 2 | H34: 4 | I34: 4 | J34: 4 | K34: 4
A35: 34 | B35: GO | C35: 3 | D35: 1 | E35: 4 | F35: 1 | G35: 1 | H35: 4 | I35: 4 | J35: 4 | K35: 4
A36: 35 | B36: LEARN | C36: 3 | D36: 2 | E36: 3 | F36: 1 | G36: 2 | H36: 4 | I36: 4 | J36: 4 | K36: 4
A37: 36 | B37: GIVE | C37: 1 | D37: 1 | E37: 1 | F37: 1 | G37: 2 | H37: 4 | I37: 2 | J37: 1 | K37: 4
A38: 37 | B38: MULTIPLY | C38: 3 | D38: 2 | E38: 4 | F38: 1 | G38: 4 | H38: 4 | I38: 3 | J38: 4 | K38: 2
A39: 38 | B39: GIVE | C39: 1 | D39: 2 | E39: 2 | F39: 2 | G39: 2 | H39: 4 | I39: 1 | J39: 0 | K39: 4
A40: 39 | B40: TELL | C40: 3 | D40: 1 | E40: 3 | F40: 2 | G40: 2 | H40: 4 | I40: 4 | J40: 3 | K40: 4
A41: 40 | B41: MULTIPLY | C41: 3 | D41: 3 | E41: 1 | F41: 1 | G41: 3 | H41: 4 | I41: 1 | J41: 0 | K41: 1
A42: 41 | B42: MULTIPLY | C42: 3 | D42: 3 | E42: 3 | F42: 1 | G42: 3 | H42: 0 | I42: 4 | J42: 0 | K42: 1
A43: 42 | B43: TELL | C43: 3 | D43: 1 | E43: 3 | F43: 0 | G43: 1 | H43: 4 | I43: 2 | J43: 3 | K43: 4

Sheet Judea (hidden)
C1: Good Ol' Baptist | D1: Good church 2 | E1: Scooter | F1: Rev. Pac DePews | G1: Highland Park First Baptist Church | H1: James Baker | I1: keith parke | J1: emmanuel baptist church- stanton, ky | K1: LesterlkWatson
A2: 1 | B2: PREPARE | C2: 1 | D2: 1 | E2: 1 | F2: 2 | G2: 2 | H2: 4 | I2: 4 | J2: 2 | K2: 4
A3: 2 | B3: LEARN | C3: 0 | D3: 4 | E3: 1 | F3: 2 | G3: 2 | H3: 4 | I3: 4 | J3: 2 | K3: 3
A4: 3 | B4: PREPARE | C4: 1 | D4: 2 | E4: 3 | F4: 0 | G4: 2 | H4: 4 | I4: 4 | J4: 1 | K4: 4
A5: 4 | B5: PREPARE | C5: 1 | D5: 3 | E5: 3 | F5: 1 | G5: 2 | H5: 3 | I5: 4 | J5: 1 | K5: 3
A6: 5 | B6: LEARN | C6: 0 | D6: 3 | E6: 1 | F6: 1 | G6: 0 | H6: 4 | I6: 4 | J6: 1 | K6: 2
A7: 6 | B7: LEARN | C7: 1 | D7: 2 | E7: 3 | F7: 1 | G7: 2 | H7: 4 | I7: 4 | J7: 3 | K7: 4
A8: 7 | B8: PRAY | C8: 1 | D8: 3 | E8: 3 | F8: 0 | G8: 3 | H8: 1 | I8: 4 | J8: 1 | K8: 3
A9: 8 | B9: PRAY | C9: 2 | D9: 3 | E9: 3 | F9: 1 | G9: 1 | H9: 4 | I9: 2 | J9: 4 | K9: 1
A10: 9 | B10: GO | C10: 4 | D10: 1 | E10: 2 | F10: 1 | G10: 1 | H10: 4 | I10: 4 | J10: 1 | K10: 3
A11: 10 | B11: PRAY | C11: 4 | D11: 2 | E11: 3 | F11: 1 | G11: 0 | H11: 2 | I11: 4 | J11: 0 | K11: 4
A12: 11 | B12: PRAY | C12: 1 | D12: 2 | E12: 1 | F12: 1 | G12: 0 | H12: 0 | I12: 4 | J12: 0 | K12: 2
A13: 12 | B13: PRAY | C13: 1 | D13: 2 | E13: 2 | F13: 1 | G13: 1 | H13: 4 | I13: 4 | J13: 2 | K13: 4
A14: 13 | B14: GIVE | C14: 4 | D14: 1 | E14: 4 | F14: 2 | G14: 3 | H14: 4 | I14: 4 | J14: 4 | K14: 4
A15: 14 | B15: GIVE | C15: 4 | D15: 2 | E15: 3 | F15: 0 | G15: 2 | H15: 4 | I15: 4 | J15: 2 | K15: 4
A16: 15 | B16: GO | C16: 2 | D16: 2 | E16: 3 | F16: 1 | G16: 2 | H16: 4 | I16: 4 | J16: 0 | K16: 4
A17: 16 | B17: LEARN | C17: 1 | D17: 2 | E17: 2 | F17: 1 | G17: 2 | H17: 4 | I17: 4 | J17: 2 | K17: 4
A18: 17 | B18: GO | C18: 0 | D18: 4 | E18: 2 | F18: 3 | G18: 2 | H18: 4 | I18: 4 | J18: 2 | K18: 4
A19: 18 | B19: TELL | C19: 1 | D19: 1 | E19: 2 | F19: 2 | G19: 2 | H19: 4 | I19: 3 | J19: 0 | K19: 3
A20: 19 | B20: TELL | C20: 4 | D20: 2 | E20: 4 | F20: 2 | G20: 2 | H20: 4 | I20: 4 | J20: 0 | K20: 4
A21: 20 | B21: SEND | C21: 2 | D21: 1 | E21: 2 | F21: 1 | G21: 3 | H21: 4 | I21: 4 | J21: 2 | K21: 2
A22: 21 | B22: SEND | C22: 1 | D22: 2 | E22: 3 | F22: 2 | G22: 3 | H22: 4 | I22: 4 | J22: 3 | K22: 4
A23: 22 | B23: SEND | C23: 3 | D23: 1 | E23: 3 | F23: 1 | G23: 2 | H23: 4 | I23: 4 | J23: 1 | K23: 2
A24: 23 | B24: MULTIPLY | C24: 3 | D24: 2 | E24: 2 | F24: 1 | G24: 1 | H24: 4 | I24: 4 | J24: 0 | K24: 2
A25: 24 | B25: MULTIPLY | C25: 1 | D25: 0 | E25: 0 | F25: 2 | G25: 0 | H25: 0 | I25: 1 | J25: 0 | K25: 1
A26: 25 | B26: MULTIPLY | C26: 1 | D26: 2 | E26: 1 | F26: 1 | G26: 1 | H26: 0 | I26: 0 | J26: 0 | K26: 1
A27: 26 | B27: PREPARE | C27: 2 | D27: 2 | E27: 2 | F27: 1 | G27: 1 | H27: 4 | I27: 4 | J27: 3 | K27: 4
A28: 27 | B28: GO | C28: 2 | D28: 2 | E28: 3 | F28: 1 | G28: 2 | H28: 3 | I28: 2 | J28: 1 | K28: 4
A29: 28 | B29: TELL | C29: 4 | D29: 1 | E29: 3 | F29: 1 | G29: 2 | H29: 4 | I29: 3 | J29: 2 | K29: 4
A30: 29 | B30: SEND | C30: 2 | D30: 4 | E30: 2 | F30: 1 | G30: 2 | H30: 4 | I30: 4 | J30: 1 | K30: 4
A31: 30 | B31: GIVE | C31: 3 | D31: 2 | E31: 4 | F31: 0 | G31: 2 | H31: 4 | I31: 4 | J31: 1 | K31: 4
A32: 31 | B32: LEARN | C32: 2 | D32: 3 | E32: 2 | F32: 0 | G32: 2 | H32: 4 | I32: 3 | J32: 1 | K32: 4
A33: 32 | B33: PREPARE | C33: 1 | D33: 2 | E33: 2 | F33: 1 | G33: 1 | H33: 0 | I33: 2 | J33: 1 | K33: 3
A34: 33 | B34: LEARN | C34: 4 | D34: 2 | E34: 2 | F34: 1 | G34: 2 | H34: 4 | I34: 4 | J34: 0 | K34: 4
A35: 34 | B35: GO | C35: 1 | D35: 2 | E35: 0 | F35: 2 | G35: 1 | H35: 4 | I35: 4 | J35: 0 | K35: 2
A36: 35 | B36: LEARN | C36: 3 | D36: 2 | E36: 2 | F36: 1 | G36: 2 | H36: 4 | I36: 4 | J36: 0 | K36: 4
A37: 36 | B37: GIVE | C37: 1 | D37: 0 | E37: 1 | F37: 1 | G37: 2 | H37: 4 | I37: 2 | J37: 1 | K37: 4
A38: 37 | B38: MULTIPLY | C38: 1 | D38: 1 | E38: 2 | F38: 1 | G38: 4 | H38: 4 | I38: 3 | J38: 4 | K38: 1
A39: 38 | B39: GIVE | C39: 1 | D39: 1 | E39: 2 | F39: 2 | G39: 1 | H39: 4 | I39: 4 | J39: 0 | K39: 4
A40: 39 | B40: TELL | C40: 2 | D40: 2 | E40: 2 | F40: 0 | G40: 1 | H40: 4 | I40: 3 | J40: 0 | K40: 4
A41: 40 | B41: MULTIPLY | C41: 3 | D41: 3 | E41: 1 | F41: 2 | G41: 3 | H41: 4 | I41: 1 | J41: 0 | K41: 1
A42: 41 | B42: MULTIPLY | C42: 3 | D42: 1 | E42: 1 | F42: 1 | G42: 2 | H42: 0 | I42: 4 | J42: 0 | K42: 1
A43: 42 | B43: TELL | C43: 2 | D43: 2 | E43: 2 | F43: 2 | G43: 1 | H43: 4 | I43: 2 | J43: 1 | K43: 4

Sheet Samaria (hidden)
C1: Good Ol' Baptist | D1: Good church 2 | E1: Scooter | F1: Rev. Pac DePews | G1: Highland Park First Baptist Church | H1: James Baker | I1: keith parke | J1: emmanuel baptist church- stanton, ky | K1: LesterlkWatson
A2: 1 | B2: PREPARE | C2: 1 | D2: 2 | E2: 1 | F2: 1 | G2: 1 | H2: 1 | I2: 4 | J2: 1 | K2: 4
A3: 2 | B3: LEARN | C3: 0 | D3: 4 | E3: 0 | F3: 3 | G3: 2 | H3: 3 | I3: 4 | J3: 0 | K3: 2
A4: 3 | B4: PREPARE | C4: 1 | D4: 2 | E4: 3 | F4: 0 | G4: 2 | H4: 2 | I4: 4 | J4: 1 | K4: 4
A5: 4 | B5: PREPARE | C5: 1 | D5: 3 | E5: 1 | F5: 0 | G5: 2 | H5: 3 | I5: 4 | J5: 1 | K5: 3
A6: 5 | B6: LEARN | C6: 0 | D6: 3 | E6: 1 | F6: 2 | G6: 1 | H6: 0 | I6: 4 | J6: 0 | K6: 2
A7: 6 | B7: LEARN | C7: 1 | D7: 2 | E7: 3 | F7: 3 | G7: 2 | H7: 0 | I7: 4 | J7: 3 | K7: 4
A8: 7 | B8: PRAY | C8: 1 | D8: 3 | E8: 3 | F8: 0 | G8: 3 | H8: 1 | I8: 4 | J8: 1 | K8: 3
A9: 8 | B9: PRAY | C9: 1 | D9: 3 | E9: 0 | F9: 2 | G9: 3 | H9: 0 | I9: 3 | J9: 3 | K9: 1
A10: 9 | B10: GO | C10: 1 | D10: 1 | E10: 0 | F10: 3 | G10: 2 | H10: 1 | I10: 4 | J10: 0 | K10: 3
A11: 10 | B11: PRAY | C11: 0 | D11: 2 | E11: 1 | F11: 2 | G11: 0 | H11: 0 | I11: 2 | J11: 0 | K11: 3
A12: 11 | B12: PRAY | C12: 1 | D12: 2 | E12: 1 | F12: 3 | G12: 0 | H12: 0 | I12: 4 | J12: 0 | K12: 2
A13: 12 | B13: PRAY | C13: 0 | D13: 3 | E13: 1 | F13: 2 | G13: 2 | H13: 0 | I13: 4 | J13: 1 | K13: 4
A14: 13 | B14: GIVE | C14: 4 | D14: 1 | E14: 4 | F14: 3 | G14: 3 | H14: 4 | I14: 4 | J14: 4 | K14: 4
A15: 14 | B15: GIVE | C15: 4 | D15: 2 | E15: 3 | F15: 1 | G15: 3 | H15: 4 | I15: 4 | J15: 4 | K15: 4
A16: 15 | B16: GO | C16: 0 | D16: 3 | E16: 0 | F16: 0 | G16: 2 | H16: 4 | I16: 2 | J16: 0 | K16: 2
A17: 16 | B17: LEARN | C17: 1 | D17: 3 | E17: 1 | F17: 1 | G17: 2 | H17: 4 | I17: 4 | J17: 0 | K17: 4
A18: 17 | B18: GO | C18: 0 | D18: 2 | E18: 0 | F18: 3 | G18: 2 | H18: 4 | I18: 4 | J18: 0 | K18: 4
A19: 18 | B19: TELL | C19: 0 | D19: 2 | E19: 0 | F19: 3 | G19: 2 | H19: 4 | I19: 2 | J19: 0 | K19: 2
A20: 19 | B20: TELL | C20: 4 | D20: 3 | E20: 4 | F20: 2 | G20: 2 | H20: 4 | I20: 3 | J20: 0 | K20: 4
A21: 20 | B21: SEND | C21: 2 | D21: 2 | E21: 2 | F21: 2 | G21: 3 | H21: 0 | I21: 4 | J21: 2 | K21: 2
A22: 21 | B22: SEND | C22: 1 | D22: 3 | E22: 3 | F22: 3 | G22: 3 | H22: 4 | I22: 4 | J22: 3 | K22: 4
A23: 22 | B23: SEND | C23: 3 | D23: 1 | E23: 3 | F23: 2 | G23: 2 | H23: 4 | I23: 4 | J23: 1 | K23: 2
A24: 23 | B24: MULTIPLY | C24: 3 | D24: 2 | E24: 0 | F24: 0 | G24: 1 | H24: 4 | I24: 4 | J24: 0 | K24: 2
A25: 24 | B25: MULTIPLY | C25: 0 | D25: 1 | E25: 0 | F25: 2 | G25: 0 | H25: 0 | I25: 1 | J25: 0 | K25: 1
A26: 25 | B26: MULTIPLY | C26: 0 | D26: 2 | E26: 1 | F26: 2 | G26: 1 | H26: 0 | I26: 0 | J26: 0 | K26: 1
A27: 26 | B27: PREPARE | C27: 2 | D27: 3 | E27: 2 | F27: 1 | G27: 1 | H27: 4 | I27: 0 | J27: 3 | K27: 3
A28: 27 | B28: GO | C28: 2 | D28: 2 | E28: 3 | F28: 1 | G28: 2 | H28: 0 | I28: 2 | J28: 1 | K28: 4
A29: 28 | B29: TELL | C29: 4 | D29: 2 | E29: 3 | F29: 1 | G29: 2 | H29: 0 | I29: 3 | J29: 1 | K29: 4
A30: 29 | B30: SEND | C30: 2 | D30: 4 | E30: 2 | F30: 1 | G30: 2 | H30: 2 | I30: 4 | J30: 1 | K30: 4
A31: 30 | B31: GIVE | C31: 3 | D31: 2 | E31: 4 | F31: 1 | G31: 3 | H31: 4 | I31: 4 | J31: 4 | K31: 4
A32: 31 | B32: LEARN | C32: 2 | D32: 3 | E32: 2 | F32: 0 | G32: 2 | H32: 4 | I32: 4 | J32: 1 | K32: 4
A33: 32 | B33: PREPARE | C33: 1 | D33: 2 | E33: 2 | F33: 1 | G33: 1 | H33: 0 | I33: 1 | J33: 1 | K33: 2
A34: 33 | B34: LEARN | C34: 1 | D34: 2 | E34: 1 | F34: 1 | G34: 3 | H34: 0 | I34: 4 | J34: 0 | K34: 4
A35: 34 | B35: GO | C35: 0 | D35: 2 | E35: 0 | F35: 2 | G35: 1 | H35: 0 | I35: 4 | J35: 0 | K35: 2
A36: 35 | B36: LEARN | C36: 1 | D36: 3 | E36: 2 | F36: 2 | G36: 2 | H36: 4 | I36: 4 | J36: 0 | K36: 4
A37: 36 | B37: GIVE | C37: 1 | D37: 1 | E37: 1 | F37: 2 | G37: 3 | H37: 4 | I37: 2 | J37: 3 | K37: 4
A38: 37 | B38: MULTIPLY | C38: 0 | D38: 1 | E38: 2 | F38: 3 | G38: 4 | H38: 4 | I38: 3 | J38: 4 | K38: 1
A39: 38 | B39: GIVE | C39: 1 | D39: 2 | E39: 2 | F39: 3 | G39: 1 | H39: 2 | I39: 4 | J39: 0 | K39: 4
A40: 39 | B40: TELL | C40: 1 | D40: 2 | E40: 1 | F40: 0 | G40: 1 | H40: 4 | I40: 3 | J40: 0 | K40: 4
A41: 40 | B41: MULTIPLY | C41: 1 | D41: 3 | E41: 3 | F41: 1 | G41: 3 | H41: 0 | I41: 2 | J41: 0 | K41: 1
A42: 41 | B42: MULTIPLY | C42: 1 | D42: 1 | E42: 1 | F42: 1 | G42: 3 | H42: 0 | I42: 2 | J42: 0 | K42: 1
A43: 42 | B43: TELL | C43: 1 | D43: 3 | E43: 2 | F43: 2 | G43: 1 | H43: 4 | I43: 2 | J43: 1 | K43: 4

Sheet End (hidden)
C1: Good Ol' Baptist | D1: Good church 2 | E1: Scooter | F1: Rev. Pac DePews | G1: Highland Park First Baptist Church | H1: James Baker | I1: keith parke | J1: emmanuel baptist church- stanton, ky | K1: LesterlkWatson
A2: 1 | B2: PREPARE | C2: 2 | D2: 2 | E2: 2 | F2: 1 | G2: 2 | H2: 0 | I2: 4 | J2: 2 | K2: 3
A3: 2 | B3: LEARN | C3: 2 | D3: 4 | E3: 1 | F3: 4 | G3: 3 | H3: 0 | I3: 4 | J3: 3 | K3: 2
A4: 3 | B4: PREPARE | C4: 3 | D4: 3 | E4: 3 | F4: 1 | G4: 2 | H4: 2 | I4: 4 | J4: 3 | K4: 4
A5: 4 | B5: PREPARE | C5: 3 | D5: 4 | E5: 3 | F5: 1 | G5: 3 | H5: 3 | I5: 4 | J5: 3 | K5: 3
A6: 5 | B6: LEARN | C6: 4 | D6: 2 | E6: 1 | F6: 3 | G6: 1 | H6: 0 | I6: 3 | J6: 4 | K6: 2
A7: 6 | B7: LEARN | C7: 3 | D7: 2 | E7: 3 | F7: 3 | G7: 2 | H7: 0 | I7: 4 | J7: 3 | K7: 4
A8: 7 | B8: PRAY | C8: 3 | D8: 2 | E8: 3 | F8: 2 | G8: 3 | H8: 1 | I8: 4 | J8: 1 | K8: 2
A9: 8 | B9: PRAY | C9: 4 | D9: 3 | E9: 4 | F9: 2 | G9: 4 | H9: 0 | I9: 4 | J9: 3 | K9: 1
A10: 9 | B10: GO | C10: 3 | D10: 1 | E10: 3 | F10: 3 | G10: 2 | H10: 0 | I10: 3 | J10: 4 | K10: 3
A11: 10 | B11: PRAY | C11: 1 | D11: 3 | E11: 1 | F11: 2 | G11: 0 | H11: 0 | I11: 2 | J11: 2 | K11: 3
A12: 11 | B12: PRAY | C12: 1 | D12: 2 | E12: 3 | F12: 3 | G12: 0 | H12: 0 | I12: 4 | J12: 0 | K12: 2
A13: 12 | B13: PRAY | C13: 3 | D13: 3 | E13: 4 | F13: 3 | G13: 4 | H13: 0 | I13: 4 | J13: 4 | K13: 4
A14: 13 | B14: GIVE | C14: 4 | D14: 2 | E14: 4 | F14: 4 | G14: 3 | H14: 4 | I14: 4 | J14: 4 | K14: 4
A15: 14 | B15: GIVE | C15: 4 | D15: 3 | E15: 3 | F15: 2 | G15: 3 | H15: 4 | I15: 4 | J15: 4 | K15: 4
A16: 15 | B16: GO | C16: 3 | D16: 3 | E16: 2 | F16: 2 | G16: 2 | H16: 0 | I16: 2 | J16: 0 | K16: 2
A17: 16 | B17: LEARN | C17: 2 | D17: 3 | E17: 2 | F17: 2 | G17: 2 | H17: 4 | I17: 4 | J17: 4 | K17: 4
A18: 17 | B18: GO | C18: 3 | D18: 1 | E18: 3 | F18: 3 | G18: 2 | H18: 4 | I18: 4 | J18: 4 | K18: 4
A19: 18 | B19: TELL | C19: 1 | D19: 3 | E19: 1 | F19: 3 | G19: 2 | H19: 3 | I19: 2 | J19: 3 | K19: 2
A20: 19 | B20: TELL | C20: 2 | D20: 3 | E20: 1 | F20: 2 | G20: 1 | H20: 2 | I20: 2 | J20: 2 | K20: 4
A21: 20 | B21: SEND | C21: 2 | D21: 2 | E21: 2 | F21: 2 | G21: 3 | H21: 0 | I21: 4 | J21: 2 | K21: 2
A22: 21 | B22: SEND | C22: 3 | D22: 3 | E22: 3 | F22: 4 | G22: 3 | H22: 4 | I22: 4 | J22: 3 | K22: 4
A23: 22 | B23: SEND | C23: 3 | D23: 3 | E23: 3 | F23: 4 | G23: 2 | H23: 1 | I23: 4 | J23: 2 | K23: 2
A24: 23 | B24: MULTIPLY | C24: 3 | D24: 3 | E24: 1 | F24: 2 | G24: 1 | H24: 4 | I24: 4 | J24: 0 | K24: 2
A25: 24 | B25: MULTIPLY | C25: 0 | D25: 2 | E25: 0 | F25: 2 | G25: 0 | H25: 0 | I25: 3 | J25: 0 | K25: 1
A26: 25 | B26: MULTIPLY | C26: 0 | D26: 2 | E26: 1 | F26: 3 | G26: 1 | H26: 0 | I26: 0 | J26: 0 | K26: 1
A27: 26 | B27: PREPARE | C27: 2 | D27: 3 | E27: 2 | F27: 3 | G27: 1 | H27: 4 | I27: 1 | J27: 3 | K27: 3
A28: 27 | B28: GO | C28: 1 | D28: 3 | E28: 2 | F28: 2 | G28: 2 | H28: 0 | I28: 2 | J28: 2 | K28: 4
A29: 28 | B29: TELL | C29: 2 | D29: 3 | E29: 2 | F29: 2 | G29: 1 | H29: 0 | I29: 2 | J29: 4 | K29: 4
A30: 29 | B30: SEND | C30: 3 | D30: 3 | E30: 2 | F30: 1 | G30: 2 | H30: 2 | I30: 4 | J30: 3 | K30: 2
A31: 30 | B31: GIVE | C31: 3 | D31: 3 | E31: 4 | F31: 2 | G31: 3 | H31: 4 | I31: 4 | J31: 4 | K31: 4
A32: 31 | B32: LEARN | C32: 2 | D32: 4 | E32: 3 | F32: 1 | G32: 2 | H32: 4 | I32: 4 | J32: 4 | K32: 4
A33: 32 | B33: PREPARE | C33: 1 | D33: 2 | E33: 2 | F33: 2 | G33: 1 | H33: 0 | I33: 1 | J33: 1 | K33: 2
A34: 33 | B34: LEARN | C34: 4 | D34: 2 | E34: 4 | F34: 1 | G34: 3 | H34: 0 | I34: 4 | J34: 4 | K34: 4
A35: 34 | B35: GO | C35: 4 | D35: 3 | E35: 0 | F35: 2 | G35: 1 | H35: 0 | I35: 0 | J35: 4 | K35: 2
A36: 35 | B36: LEARN | C36: 3 | D36: 4 | E36: 3 | F36: 2 | G36: 2 | H36: 4 | I36: 4 | J36: 4 | K36: 1
A37: 36 | B37: GIVE | C37: 1 | D37: 1 | E37: 2 | F37: 3 | G37: 3 | H37: 4 | I37: 2 | J37: 3 | K37: 4
A38: 37 | B38: MULTIPLY | C38: 0 | D38: 1 | E38: 1 | F38: 3 | G38: 4 | H38: 4 | I38: 3 | J38: 4 | K38: 1
A39: 38 | B39: GIVE | C39: 2 | D39: 3 | E39: 2 | F39: 4 | G39: 2 | H39: 0 | I39: 2 | J39: 4 | K39: 4
A40: 39 | B40: TELL | C40: 3 | D40: 2 | E40: 1 | F40: 2 | G40: 1 | H40: 4 | I40: 2 | J40: 2 | K40: 2
A41: 40 | B41: MULTIPLY | C41: 0 | D41: 3 | E41: 1 | F41: 3 | G41: 3 | H41: 0 | I41: 0 | J41: 0 | K41: 1
A42: 41 | B42: MULTIPLY | C42: 0 | D42: 2 | E42: 1 | F42: 4 | G42: 1 | H42: 0 | I42: 2 | J42: 0 | K42: 1
A43: 42 | B43: TELL | C43: 2 | D43: 4 | E43: 2 | F43: 3 | G43: 1 | H43: 4 | I43: 2 | J43: 3 | K43: 4

Sheet Sheet1 (hidden)

Sheet Sheet2 (hidden)
